Workbook

Sheet Øresund
A1: Vandområde | C1: Øresund | BA1: Vandområde | BC1: Damhusåen
A3: Udlednings nr. | C3: U4 | D3: UØX2 | E3: UØ14.1 | F3: UØ15 | G3: UØ17 | H3: UØ12.1 | BA3: Udlednings nr. | BC3: UD10b | BD3: UD10d | BE3: UD11b | BF3: UD12 | BG3: UD13 | BH3: UD14 | BI3: UD15 | BJ3: UD16 | BK3: UD17 | BL3: UD18 | BM3: UD19b | BN3: UD20b | BO3: UD21 | BP3: UD21b | BQ3: UD24 | BR3: Sum
A4: Adresse | C4: Pumpestation Strandvænget | D4: AM til Øresund_20XX | E4: Renseanlæg Damhusåen | F4: Bypass Renseanlæg Damhusåen | G4: Renseanlæg Lynetten | H4: Bypass Renseanlæg Lynetten | I4: SUM | BA4: Adresse | BC4: Nødoverløb Damhusåens renseanlæg | BD4: Hovedoverløb Damhus-ledning | BE4: Åhaven | BF4: Sønderkær | BG4: Vigerslev Allé | BH4: Gårdstedet | BI4: Heldbovej | BJ4: Lykkebovej | BK4: Landlystvej | BL4: Skyttegårdsvej | BM4: Sandhusvej | BN4: Hvidovre station | BO4: Vigerslev-parken N for Dæmningen | BP4: Nødoverløb ved Torpedo-bygværket | BQ4: Roskildevej | BR4: -
A5: Kloakeringstype | B5: Status | C5: Fælles | D5: - | E5: - | F5: - | G5: - | H5: - | I5: - | BA5: Kloakeringstype | BB5: Status | BC5: Fælles | BD5: Fælles | BE5: Fælles | BF5: Fælles | BG5: Fælles | BH5: Fælles | BI5: Fælles | BJ5: Fælles | BK5: Fælles | BL5: Fælles | BM5: Fælles | BN5: Fælles | BO5: Fælles | BP5: Fælles | BQ5: Fælles | BR5: -
B6: Plan | C6: Fælles | D6: - | E6: - | F6: - | G6: - | H6: - | I6: - | BB6: Plan | BC6: Fælles | BD6: Fælles | BE6: Fælles | BF6: Fælles | BG6: Fælles | BH6: Fælles | BI6: Fælles | BJ6: Fælles | BK6: Fælles | BL6: Fælles | BM6: Fælles | BN6: Fælles | BO6: Fælles | BP6: Fælles | BQ6: Fælles | BR6: -
B7: Strategi | C7: Fælles | D7: Separat | E7: - | F7: - | G7: - | H7: - | I7: - | BB7: Strategi | BC7: Fælles | BD7: Fælles | BE7: Fælles | BF7: Fælles | BG7: Fælles | BH7: Fælles | BI7: Fælles | BJ7: Fælles | BK7: Fælles | BL7: Fælles | BM7: Fælles | BN7: Fælles | BO7: Fælles | BP7: Fælles | BQ7: Fælles | BR7: -
A8: Reduceret areal ha | B8: Status | C8: 0 | D8: - | E8: - | F8: - | G8: - | H8: - | I8: =SUM(Tabel117[[#This Row],[Pumpestation Strandvænget]:[Bypass Renseanlæg Lynetten]]) -> 0 | BA8: Reduceret areal ha | BB8: Status | BC8: 62.09627 | BD8: 0 | BE8: 4.926299 | BF8: 13.292068 | BG8: 9.063189 | BH8: 1.454076 | BI8: 1.523395 | BJ8: 3.503314 | BK8: 1.93898 | BL8: 4.850912 | BM8: 2.3 | BN8: 1.07056 | BO8: 284.5 | BP8: 0 | BQ8: 0 | BR8: =SUM(BC8:BQ8) -> 390.519063
B9: Plan | C9: 0 | D9: - | E9: - | F9: - | G9: - | H9: - | I9: =SUM(Tabel117[[#This Row],[Pumpestation Strandvænget]:[Bypass Renseanlæg Lynetten]]) -> 0 | BB9: Plan | BC9: 62.09627 | BD9: 0 | BE9: 4.926299 | BF9: 13.292068 | BG9: 9.063189 | BH9: 1.454076 | BI9: 1.523395 | BJ9: 3.503314 | BK9: 1.93898 | BL9: 4.850912 | BM9: 2.3 | BN9: 1.07056 | BO9: 284.5 | BP9: 0 | BQ9: 0 | BR9: 390.519063
B10: Strategi | C10: 0 | D10: 141.3333333 | E10: - | F10: - | G10: - | H10: - | I10: =SUM(Tabel117[[#This Row],[Pumpestation Strandvænget]:[Bypass Renseanlæg Lynetten]]) -> 141.3333333 | BB10: Strategi | BC10: 62.09627 | BD10: 0 | BE10: 4.926299 | BF10: 13.292068 | BG10: 9.063189 | BH10: 1.454076 | BI10: 1.523395 | BJ10: 3.503314 | BK10: 1.93898 | BL10: 4.850912 | BM10: 2.3 | BN10: 1.07056 | BO10: 284.5 | BP10: 0 | BQ10: 0 | BR10: 390.519063
A11: Maks udledning l/s | B11: Status | C11: 1500 | D11: - | E11: - | F11: - | G11: - | H11: - | I11: =SUM(Tabel117[[#This Row],[Pumpestation Strandvænget]:[Bypass Renseanlæg Lynetten]]) -> 1500 | BA11: Maks udledning l/s | BB11: Status | BC11: 5000 | BD11: 5000 | BE11: 700 | BF11: 3000 | BG11: 1200 | BH11: 500 | BI11: 100 | BJ11: 300 | BK11: 300 | BL11: 500 | BM11: 500 | BN11: 200 | BO11: 1500 | BP11: 0 | BQ11: 1000 | BR11: 19800
B12: Plan | C12: 1500 | D12: - | E12: - | F12: - | G12: - | H12: - | I12: =SUM(Tabel117[[#This Row],[Pumpestation Strandvænget]:[Bypass Renseanlæg Lynetten]]) -> 1500 | BB12: Plan | BC12: 5000 | BD12: 5000 | BE12: 700 | BF12: 3000 | BG12: 1200 | BH12: 500 | BI12: 100 | BJ12: 300 | BK12: 300 | BL12: 500 | BM12: 500 | BN12: 200 | BO12: 1500 | BP12: 0 | BQ12: 1000 | BR12: 19800
B13: Strategi | C13: 1500 | D13: 8480 | E13: - | F13: - | G13: - | H13: - | I13: =SUM(Tabel117[[#This Row],[Pumpestation Strandvænget]:[Bypass Renseanlæg Lynetten]]) -> 9980 | BB13: Strategi | BC13: 5000 | BD13: 5000 | BE13: 700 | BF13: 3000 | BG13: 1200 | BH13: 500 | BI13: 100 | BJ13: 300 | BK13: 300 | BL13: 500 | BM13: 500 | BN13: 200 | BO13: 1500 | BP13: 0 | BQ13: 1000 | BR13: 19800
A14: Overløbshyppighed antal/år | B14: Status | C14: 15 | D14: - | E14: - | F14: - | G14: - | H14: - | I14: =SUM(Tabel117[[#This Row],[Pumpestation Strandvænget]:[Bypass Renseanlæg Lynetten]]) -> 15 | BA14: Overløbshyppighed antal/år | BB14: Status | BC14: 2 | BD14: 1 | BE14: 0.5 | BF14: 0.1 | BG14: 0.1 | BH14: 0.1 | BI14: 0.1 | BJ14: 0.1 | BK14: 0.25 | BL14: 0.3 | BM14: 0.1 | BN14: 0.1 | BO14: 0.2 | BP14: 0 | BQ14: 13 | BR14: -
B15: Plan | C15: 15 | D15: - | E15: - | F15: - | G15: - | H15: - | I15: =SUM(Tabel117[[#This Row],[Pumpestation Strandvænget]:[Bypass Renseanlæg Lynetten]]) -> 15 | BB15: Plan | BC15: 2 | BD15: 1 | BE15: 0.5 | BF15: 0.1 | BG15: 0.1 | BH15: 0.1 | BI15: 0.1 | BJ15: 0.1 | BK15: 0.25 | BL15: 0.3 | BM15: 0.1 | BN15: 0.1 | BO15: 0.2 | BP15: 0 | BQ15: 13 | BR15: -
B16: Strategi | C16: 15 | D16: 0 | E16: - | F16: - | G16: - | H16: - | I16: =SUM(Tabel117[[#This Row],[Pumpestation Strandvænget]:[Bypass Renseanlæg Lynetten]]) -> 15 | BB16: Strategi | BC16: 1 | BD16: 0.1 | BE16: 0.05 | BF16: 0.01 | BG16: 0.01 | BH16: 0.01 | BI16: 0.01 | BJ16: 0.01 | BK16: 0.025 | BL16: 0.03 | BM16: 0.01 | BN16: 0.01 | BO16: 0.02 | BP16: 0 | BQ16: 10 | BR16: -
A17: Vand m3/år | B17: Status | C17: 105000 | D17: - | I17: =SUM(Tabel117[[#This Row],[Pumpestation Strandvænget]:[Bypass Renseanlæg Lynetten]]) -> 105000 | BA17: Vand m3/år | BB17: Status | BC17: 3408 | BD17: 15000 | BE17: 500 | BF17: 1000 | BG17: 100 | BH17: 100 | BI17: 100 | BJ17: 100 | BK17: 500 | BL17: 100 | BM17: 100 | BN17: 100 | BO17: 500 | BP17: 0 | BQ17: 8734 | BR17: =SUM(BC17:BQ17) -> 30342
B18: Plan | C18: 105000 | D18: - | I18: =SUM(Tabel117[[#This Row],[Pumpestation Strandvænget]:[Bypass Renseanlæg Lynetten]]) -> 105000 | BB18: Plan | BC18: 3408 | BD18: 15000 | BE18: 500 | BF18: 1000 | BG18: 100 | BH18: 100 | BI18: 100 | BJ18: 100 | BK18: 500 | BL18: 100 | BM18: 100 | BN18: 100 | BO18: 500 | BP18: 0 | BQ18: 8734 | BR18: 30342
B19: Strategi | C19: 45453.75 | D19: 500000 | I19: =SUM(Tabel117[[#This Row],[Pumpestation Strandvænget]:[Bypass Renseanlæg Lynetten]]) -> 545453.75 | BB19: Strategi | BC19: 1704 | BD19: 1500 | BE19: 50 | BF19: 100 | BG19: 10 | BH19: 10 | BI19: 10 | BJ19: 10 | BK19: 50 | BL19: 10 | BM19: 10 | BN19: 10 | BO19: 50 | BP19: 0 | BQ19: 780 | BR19: 4304
A20: COD kg/år | B20: Status | C20: 5250 | D20: - | E20: 875000 | F20: 535000 | G20: 2505000 | H20: 1493000 | I20: =SUM(Tabel117[[#This Row],[Pumpestation Strandvænget]:[Bypass Renseanlæg Lynetten]]) -> 5413250 | BA20: COD kg/år | BB20: Status | BC20: 170 | BD20: 750 | BE20: 25 | BF20: 50 | BG20: 5 | BH20: 5 | BI20: 5 | BJ20: 5 | BK20: 25 | BL20: 5 | BM20: 5 | BN20: 5 | BO20: 25 | BP20: 0 | BQ20: 437 | BR20: 1517
B21: Plan | C21: 5250 | D21: - | E21: 889000 | F21: 173000 | G21: 1965000 | H21: 310000 | I21: =SUM(Tabel117[[#This Row],[Pumpestation Strandvænget]:[Bypass Renseanlæg Lynetten]]) -> 3342250 | BB21: Plan | BC21: 170 | BD21: 750 | BE21: 25 | BF21: 50 | BG21: 5 | BH21: 5 | BI21: 5 | BJ21: 5 | BK21: 25 | BL21: 5 | BM21: 5 | BN21: 5 | BO21: 25 | BP21: 0 | BQ21: 437 | BR21: 1517
B22: Strategi | C22: 2272.6875 | D22: 80000 | E22: 833000 | F22: 135000 | G22: 1832000 | H22: 220000 | I22: =SUM(Tabel117[[#This Row],[Pumpestation Strandvænget]:[Bypass Renseanlæg Lynetten]]) -> 3102272.688 | BB22: Strategi | BC22: 85 | BD22: 75 | BE22: 2 | BF22: 5.9 | BG22: 0.5 | BH22: 0.5 | BI22: 0.5 | BJ22: 0.5 | BK22: 2.5 | BL22: 0.5 | BM22: 0.5 | BN22: 0.5 | BO22: 2.5 | BP22: 0 | BQ22: 39 | BR22: 215.4
A23: Total N kg/år | B23: Status | C23: 210 | D23: - | E23: 195000 | F23: 67000 | G23: 425000 | H23: 117000 | I23: =SUM(Tabel117[[#This Row],[Pumpestation Strandvænget]:[Bypass Renseanlæg Lynetten]]) -> 804210 | BA23: Total N kg/år | BB23: Status | BC23: 6.8 | BD23: 30 | BE23: 1 | BF23: 2 | BG23: 0.2 | BH23: 0.2 | BI23: 0.2 | BJ23: 0.2 | BK23: 1 | BL23: 0.2 | BM23: 0.2 | BN23: 0.2 | BO23: 1 | BP23: 0 | BQ23: 17.5 | BR23: 60.7
B24: Plan | C24: 210 | D24: - | E24: 163000 | F24: 19000 | G24: 360000 | H24: 24000 | I24: =SUM(Tabel117[[#This Row],[Pumpestation Strandvænget]:[Bypass Renseanlæg Lynetten]]) -> 566210 | BB24: Plan | BC24: 6.8 | BD24: 30 | BE24: 1 | BF24: 2 | BG24: 0.2 | BH24: 0.2 | BI24: 0.2 | BJ24: 0.2 | BK24: 1 | BL24: 0.2 | BM24: 0.2 | BN24: 0.2 | BO24: 1 | BP24: 0 | BQ24: 17.5 | BR24: 60.7
B25: Strategi | C25: 90.9075 | D25: 5000 | E25: 153000 | F25: 15000 | G25: 336000 | H25: 17000 | I25: =SUM(Tabel117[[#This Row],[Pumpestation Strandvænget]:[Bypass Renseanlæg Lynetten]]) -> 526090.9075 | BB25: Strategi | BC25: 3.4 | BD25: 3 | BE25: 0.08 | BF25: 0.2 | BG25: 0.02 | BH25: 0.02 | BI25: 0.02 | BJ25: 0.02 | BK25: 0.1 | BL25: 0.02 | BM25: 0.02 | BN25: 0.02 | BO25: 0.1 | BP25: 0 | BQ25: 1.6 | BR25: 8.62
A26: Total P kg/år | B26: Status | C26: 52.5 | D26: - | E26: 25000 | F26: 10100 | G26: 78000 | H26: 20700 | I26: =SUM(Tabel117[[#This Row],[Pumpestation Strandvænget]:[Bypass Renseanlæg Lynetten]]) -> 133852.5 | BA26: Total P kg/år | BB26: Status | BC26: 1.7 | BD26: 7.5 | BE26: 0.25 | BF26: 0.5 | BG26: 0.05 | BH26: 0.05 | BI26: 0.05 | BJ26: 0.05 | BK26: 0.25 | BL26: 0.05 | BM26: 0.05 | BN26: 0.05 | BO26: 0.25 | BP26: 0 | BQ26: 4.4 | BR26: 15.2
B27: Plan | C27: 52.5 | D27: - | E27: 15000 | F27: 2800 | G27: 33000 | H27: 4200 | I27: =SUM(Tabel117[[#This Row],[Pumpestation Strandvænget]:[Bypass Renseanlæg Lynetten]]) -> 55052.5 | BB27: Plan | BC27: 1.7 | BD27: 7.5 | BE27: 0.25 | BF27: 0.5 | BG27: 0.05 | BH27: 0.05 | BI27: 0.05 | BJ27: 0.05 | BK27: 0.25 | BL27: 0.05 | BM27: 0.05 | BN27: 0.05 | BO27: 0.25 | BP27: 0 | BQ27: 4.4 | BR27: 15.2
B28: Strategi | C28: 22.726875 | D28: 1250 | E28: 14000 | F28: 2200 | G28: 31000 | H28: 3000 | I28: =SUM(Tabel117[[#This Row],[Pumpestation Strandvænget]:[Bypass Renseanlæg Lynetten]]) -> 51472.72688 | BB28: Strategi | BC28: 0.8 | BD28: 0.75 | BE28: 0.02 | BF28: 0.06 | BG28: 0.005 | BH28: 0.005 | BI28: 0.005 | BJ28: 0.005 | BK28: 0.025 | BL28: 0.005 | BM28: 0.005 | BN28: 0.005 | BO28: 0.025 | BP28: 0 | BQ28: 0.4 | BR28: =SUM(BC28:BQ28) -> 2.115
